Cogmind - Beta 12 @@@ ROGUE MODE // 2023.04.30 @ 00:01:56 Player: Pyjamarama Result: Destroyed by Proton Bomb Trap Performance ------------- Evolutions (0) 0 Regions Visited (4) 800 Robots Destroyed (21) 105 Value Destroyed (380) 380 Prototype IDs (3) 60 Alien Tech Used (0) 0 Bonus (423) 423 TOTAL SCORE: 1768 Bonus ------- Follower Combat Kills 123 Aligned with FarCom 300 Cogmind --------- Core Integrity 0/250 Matter 300/300 Energy 125/125 System Corruption 1% Temperature Cool (0) Movement Walking (140) Location -9/Mines Parts ------- > --- POWER (1) -------- Light Ion Engine > --- PROPULSION (2) --- Makeshift Leg Makeshift Leg > --- UTILITY (2) ------ Signal Interpreter Trap Reconfigurator > --- WEAPON (2) ------- Light EM Pulse Cannon Katana > --- INVENTORY (5) ---- Large Storage Unit Large Battery (200) Targeting Computer Melee Analysis Suite ECM Suite Peak State ------------ > --- POWER ------------ Light Ion Engine > --- PROPULSION ------- Makeshift Leg Makeshift Leg > --- UTILITY ---------- Signal Interpreter Trap Reconfigurator > --- WEAPON ----------- Light EM Pulse Cannon Katana > --- INVENTORY -------- Improved Heat Sink Large Storage Unit Large Battery Targeting Computer ECM Suite [Rating: 24] Favorites ----------- Power Light Ion Engine Engine Light Ion Engine Propulsion Improved Aluminum Leg Leg Improved Aluminum Leg Utility Signal Interpreter Device Trap Reconfigurator Storage Large Battery Processor Signal Interpreter Weapon Light EM Pulse Cannon Energy Gun EM Shotgun Energy Cannon Light EM Pulse Cannon Ballistic Gun Assault Rifle Launcher Grenade Launcher Slashing Weapon Katana Build | -11 -10 -10 -10 -9 ------- Run | Jun Mat Min Exi Min Slots Evolved . | . . . . . Power . | . . . . . Propulsion . | . . . . . Utility . | . . . . . Weapon . | . . . . . Parts Attached 38 | 6 17 9 1 5 Power 4 | 1 1 2 . . Engine 4 | 1 1 2 . . Core . | . . . . . Reactor . | . . . . . Propulsion 12 | 2 4 3 . 3 Treads . | . . . . . Leg 12 | 2 4 3 . 3 Wheel . | . . . . . Hover . | . . . . . Flight . | . . . . . Utility 7 | 1 4 1 1 . Device 2 | . 1 . 1 . Storage 4 | 1 2 1 . . Processor 1 | . 1 . . . Hackware . | . . . . . Protection . | . . . . . Artifact . | . . . . . Weapon 15 | 2 8 3 . 2 Energy Gun 4 | 1 2 . . 1 Energy Cannon 4 | . 2 2 . . Ballistic Gun 5 | 1 4 . . . Ballistic Cannon . | . . . . . Launcher 1 | . . 1 . . Special Weapon . | . . . . . Impact Weapon . | . . . . . Slashing Weapon 1 | . . . . 1 Piercing Weapon . | . . . . . Special Melee Weapon . | . . . . . Unidentified Prototypes 1 | . . . 1 . Parts Lost 10 | . 3 7 . . Power 1 | . . 1 . . Propulsion 4 | . 1 3 . . Utility . | . . . . . Weapon 5 | . 2 3 . . Highest Loss Streak 6 | . 2 6 . . To Critical Strikes . | . . . . . Average Slot Usage (%) 83 | . 97 71 71 80 Engine 13 | . 14 13 14 14 Leg 21 | . 28 15 14 20 Device 3 | . 1 . 1 14 Storage 10 | . 14 12 12 . Processor 12 | . 10 14 14 14 Energy Gun 2 | . 7 . . . Energy Cannon 11 | . 8 14 14 14 Ballistic Gun 4 | . 12 . . . Naked Turns . | . . . . . Heaviest Build 31 | 14 31 31 10 10 Greatest Support 40 | 20 26 26 13 40 Greatest Overweight (x) 2 | 2 1 1 . . Average Overweight (x) . | . . . . . Largest Inventory Capacity 15 | 8 15 15 5 5 Average Capacity 7 | 6 11 5 5 5 Most Carried 12 | 2 12 12 5 5 Average Carried 6 | 1 8 5 4 5 Final Capacity 15 | 8 15 5 5 5 Final Carried 12 | 2 12 5 5 5 Class Distribution -------------------- 95% | Mutant 4% | Scavenger-Mutant Dominant Class ---------------- Mutant | -10/Materials Mutant | -10/Mines Mutant | -10/Exiles Mutant | -9/Mines Resources | -11 -10 -10 -10 -9 ----------- Run | Jun Mat Min Exi Min Matter Collected 798 | 249 409 60 . 80 Remotely . | . . . . . Salvage Created 552 | . 502 50 . . Parts 52 | . 47 5 . . Haulers Intercepted 2 | . 2 . . . Recyclers Shooed . | . . . . . Parts Field Recycled . | . . . . . Retrieved Matter . | . . . . . Parts Self-Destructed . | . . . . . Prevented . | . . . . . Kills | -11 -10 -10 -10 -9 ------- Run | Jun Mat Min Exi Min Combat Hostiles Destroyed 15 | . 12 3 . . Guns 11 | . 11 . . . Cannons 3 | . . 3 . . AOE 1 | . 1 . . . Classes Destroyed 5 | . 5 . . . Worker 1 | . 1 . . . Hauler 2 | . 2 . . . Watcher 3 | . 3 . . . Swarmer 9 | . 6 3 . . Grunt 6 | . 6 . . . Best Kill Streak 4 | . 4 3 . . Combat Bots Only 3 | . 3 3 . . Max Kills in Single Turn 2 | . 2 1 . . Gunslinging 1 | . 1 . . . Exploded 1 | . 1 . . . Melee . | . . . . . Uniques/NPCs Destroyed . | . . . . . Combat | -11 -10 -10 -10 -9 -------- Run | Jun Mat Min Exi Min Damage Taken 1375 | . 526 838 . 11 Core 253 | . 77 165 . 11 Absorbed by Shields . | . . . . . Core Remaining (%) 100 | 100 . . . . Volleys Fired 91 | . 72 19 . . Largest 2 | . 2 2 . . Hottest 112 | . 90 112 . . Shots Fired 166 | . 145 21 . . Gun 144 | . 144 . . . Cannon 22 | . 1 21 . . Launcher . | . . . . . Special . | . . . . . Kinetic 132 | . 132 . . . Thermal . | . . . . . Explosive . | . . . . . Electromagnetic 34 | . 13 21 . . Robot Hit Streak 8 | . 8 3 . . Robot Miss Streak 8 | . 8 6 . . Penetration Max . | . . . . . Secondary Targets 2 | . 2 . . . Max Gunslinging Chain 1 | . 1 . . . Shots Hit Robots 87 | . 78 9 . . Core Hits 36 | . 32 4 . . Critical Kills . | . . . . . Critical Parts Destroyed . | . . . . . Critical Strikes . | . . . . . Melee Attacks . | . . . . . Impact . | . . . . . Slashing . | . . . . . Piercing . | . . . . . Sneak Attacks . | . . . . . Combat Hostiles . | . . . . . Follow-up Attacks . | . . . . . Damage Inflicted 1163 | . 991 172 . . Guns 790 | . 790 . . . Cannons 172 | . . 172 . . Explosions 201 | . 201 . . . Melee . | . . . . . Ramming . | . . . . . Kinetic 689 | . 689 . . . Thermal 44 | . 44 . . . Explosive 157 | . 157 . . . Electromagnetic 273 | . 101 172 . . Impact . | . . . . . Slashing . | . . . . . Piercing . | . . . . . Highest Corruption 1 | . 1 1 1 1 Average Corruption 1 | . 1 1 1 1 Corruption Purged . | . . . . . Corruption Blocked . | . . . . . Effects 29 | . 9 5 6 9 Message Errors 13 | . 5 3 2 3 Matter Fused 4 | . 1 . 1 2 Heat Flow Errors 2 | . . . 1 1 Energy Discharges 4 | . 2 1 . 1 Data Loss (minor) 4 | . . 1 1 2 Data Loss (major) 1 | . . . 1 . Misfires 1 | . 1 . . . Overload Shots . | . . . . . Overflow Damage . | . . . . . Projectiles . | . . . . . Explosions . | . . . . . Melee . | . . . . . Knockbacks . | . . . . . Impact . | . . . . . Kinetic . | . . . . . Secondary . | . . . . . Self-Inflicted Damage 33 | . 33 . . . Shots 1 | . 1 . . . Rammed . | . . . . . Targets Rammed 1 | . . . . 1 Kicked 1 | . . . . 1 Crushed . | . . . . . Highest Temperature 184 | . 30 147 109 184 Average Temperature 46 | . 10 58 60 98 Received Heat Transfer 254 | . 174 80 . . Siege Activations . | . . . . . Robots Corrupted . | . . . . . Combat Hostiles . | . . . . . Parts Fried 1 | . . 1 . . Impact Corruptions . | . . . . . Robots Melted . | . . . . . Combat Hostiles . | . . . . . Parts Melted . | . . . . . Heat Transferred 50 | . 50 . . . Parts Sabotaged . | . . . . . Parts Stolen . | . . . . . Parts Stripped . | . . . . . Power Chain Reactions 1 | . 1 . . . Missiles Intercepted . | . . . . . Alert | -11 -10 -10 -10 -9 ------- Run | Jun Mat Min Exi Min Peak Influence 325 | . 325 96 . 105 Initial . | . . . . . Average 62 | . 83 66 . 19 Maximum Alert Level 1 | . 1 . . . Low Security (%) 94 | 100 89 100 . 100 Level 1 5 | . 10 . . . Level 2 . | . . . . . Level 3 . | . . . . . Level 4 . | . . . . . Level 5 . | . . . . . High Security . | . . . . . Max Security . | . . . . . Squads Dispatched 4 | . 3 . . 1 Investigation 1 | . 1 . . . Extermination . | . . . . . Reinforcement 2 | . 2 . . . Assault 1 | . . . . 1 Garrison . | . . . . . Intercept . | . . . . . Searches Triggered . | . . . . . Construction Impeded . | . . . . . Haulers Reinforced . | . . . . . Active Scanning Responses . | . . . . . Cargo Convoy Interrupts . | . . . . . Stealth | -11 -10 -10 -10 -9 --------- Run | Jun Mat Min Exi Min Distress Signals . | . . . . . Communications Jammed . | . . . . . Distress Signals . | . . . . . Times Spotted 43 | . 20 23 . . Peak Tracking Total 19 | . 5 19 . . Tactical Retreats 3 | . 1 2 . . Traps | -11 -10 -10 -10 -9 ------- Run | Jun Mat Min Exi Min Traps Triggered . | . . . . . Indirectly . | . . . . . Trap Hack Attempts . | . . . . . Triggered . | . . . . . Disarmed . | . . . . . Reprogrammed . | . . . . . Reused . | . . . . . Traps Reconfigurated 1 | . . . . 1 Traps Extracted . | . . . . . Installed . | . . . . . Triggered . | . . . . . Machines | -11 -10 -10 -10 -9 ---------- Run | Jun Mat Min Exi Min Machines Disabled 2 | . 2 . . . Max in Single Turn 1 | . 1 . . . Machines Repaired . | . . . . . Machines Sabotaged . | . . . . . Overloaded Fab Kills . | . . . . . Hacking | -11 -10 -10 -10 -9 --------- Run | Jun Mat Min Exi Min Machines Accessed 12 | . 7 . 4 1 Terminals 6 | . 6 . . . Fabricators . | . . . . . Repair Stations . | . . . . . Recycling Units 1 | . 1 . . . Scanalyzers . | . . . . . Garrison Access . | . . . . . Total Hacks 56 | . 25 . 30 1 Successful 45 | . 14 . 30 1 Failed 11 | . 11 . . . Catastrophic . | . . . . . Database Lockouts . | . . . . . Manual 7 | . 6 . 1 . Terminals 20 | . 20 . . . Fabricators . | . . . . . Repair Stations . | . . . . . Recycling Units 5 | . 5 . . . Scanalyzers . | . . . . . Garrison Access . | . . . . . Terminal Hacks 42 | . 11 . 30 1 Record 33 | . 3 . 30 . Prototype ID Bank 1 | . 1 . . . Open Door 1 | . . . . 1 Emergency Access Points 1 | . 1 . . . Alert Level 1 | . 1 . . . Locate Traps 4 | . 4 . . . Recall Investigation 1 | . 1 . . . Fabricator Hacks . | . . . . . Repair Station Hacks . | . . . . . Recycling Unit Hacks 3 | . 3 . . . Recycle Component 1 | . 1 . . . Process 1 | . 1 . . . Retrieve Components 1 | . 1 . . . Scanalyzer . | . . . . . Garrison Access Hacks . | . . . . . Unauthorized Hacks . | . . . . . Terminals . | . . . . . Fabricators . | . . . . . Repair Stations . | . . . . . Recycling Units . | . . . . . Scanalyzers . | . . . . . Garrison Access . | . . . . . Data Cores Recovered . | . . . . . Used . | . . . . . Hacking Detections 4 | . 4 . . . Full Trace Events 2 | . 2 . . . Feedback Events 1 | . 1 . . . Corruption 1 | . 1 . . . Feedback Blocked . | . . . . . Robot Schematics Acquired . | . . . . . Robots Built . | . . . . . Authchips . | . . . . . Time . | . . . . . Total Robot Build Rating . | . . . . . Part Schematics Acquired . | . . . . . Parts Built . | . . . . . Authchips . | . . . . . Time . | . . . . . Total Part Build Rating . | . . . . . Parts Repaired . | . . . . . Time . | . . . . . Parts Recycled 1 | . 1 . . . Recycled Matter 76 | . 76 . . . Retrieved Matter . | . . . . . Retrieved Components . | . . . . . Parts Scanalyzed . | . . . . . Part Schematics Acquired . | . . . . . Parts Damaged . | . . . . . Bothacking | -11 -10 -10 -10 -9 ------------ Run | Jun Mat Min Exi Min Used RIF Installer . | . . . . . Robots Hacked . | . . . . . Non-combat . | . . . . . Combat . | . . . . . Robot Hacks Applied . | . . . . . Relay Couplers Released . | . . . . . Fabnet Peak Effective % . | . . . . . Robots Rewired . | . . . . . Allies Hacked . | . . . . . Hacks Repelled . | . . . . . Allies | -11 -10 -10 -10 -9 -------- Run | Jun Mat Min Exi Min Total Allies 6 | . . 3 . 3 Largest Group 6 | . . 3 3 6 Highest-Rated Group 114 | . . 40 40 114 Highest-Rated Ally 31 | . . 16 16 31 Total Orders 3 | . . 3 . . AID 3 | . . 3 . . Ally Attacks 48 | . . 15 . 33 Total Damage 525 | . . 114 . 411 Kills 7 | . . 3 . 4 Allies Corrupted . | . . . . . Allies Melted . | . . . . . Intel | -11 -10 -10 -10 -9 ------- Run | Jun Mat Min Exi Min Robot Analysis Total . | . . . . . Derelict Logs Recovered 4 | . . 1 . 3 Drone Launches . | . . . . . Drone Recoveries . | . . . . . Exploration | -11 -10 -10 -10 -9 ------------- Run | Jun Mat Min Exi Min Turns Passed 4446 | 56 1745 804 985 856 Spaces Moved 3218 | 42 1073 620 819 664 Core 47 | 21 . 26 . . Treads . | . . . . . Legs 3171 | 21 1073 594 819 664 Wheels . | . . . . . Hover . | . . . . . Flight . | . . . . . Fastest Speed 50 | 50 120 50 120 120 Average Speed 125 | 108 135 118 120 123 Slowest Speed 190 | 150 190 190 120 140 Overloaded Moves . | . . . . . Propulsion Burnouts . | . . . . . Robots Hopped . | . . . . . Cave-ins Triggered . | . . . . . Exploration Rate (%) 76 | 4 96 98 94 92 Regions Visited 4 Branch Regions 3 Pre-discovered Areas 3 | . . . 1 2 Known Exits Taken 3 | . 1 1 1 . Unknown Exits Taken 1 | 1 . . . . Scrap Searched 1 | . . . . 1 Spaces Dug . | . . . . . Terrain Destroyed 5 | . 5 . . . Melee . | . . . . . Projectile . | . . . . . AOE 5 | . 5 . . . Terrain Rammed . | . . . . . Walls Destroyed . | . . . . . Machines Disabled . | . . . . . Actions | -11 -10 -10 -10 -9 --------- Run | Jun Mat Min Exi Min Total 3481 | 49 1246 668 821 697 Wait 66 | . 28 16 . 22 Move 3214 | 41 1072 619 818 664 Hop . | . . . . . Pick Up 39 | 2 33 3 . 1 Fast Attach 23 | 6 6 5 1 5 Attach 6 | . 3 3 . . Detach 1 | . . . 1 . Swap 9 | . 8 1 . . Drop 31 | . 24 2 1 4 Fire 91 | . 72 19 . . Melee . | . . . . . Ram . | . . . . . Kick 1 | . . . . 1 Crush . | . . . . . Escape Stasis . | . . . . . Rewire . | . . . . . Trap . | . . . . . Miscellaneous . | . . . . . Route ------- -11/Junkyard -10/Materials (discovered 5 exits: *Mat x3 / *Min x2) -10/Mines (discovered 3 exits: *Mat x2 / *Exi) -10/Exiles (discovered 2 exits: *Min x2) -9/Mines (discovered 2 exits: *Mat x2) History --------- Turn | Location | Event 2 | -11/Junkyard | Met Revision 17 7 | -11/Junkyard | Discovered new exit (range 15) 57 | -11/Junkyard | Entered Materials 300 | -10/Materials | Build established: Mutant 331 | -10/Materials | Discovered new exit (range 12) 451 | -10/Materials | Discovered new exit (range 15) 563 | -10/Materials | Identified exit to Mines 646 | -10/Materials | Identified exit to Materials 814 | -10/Materials | Discovered exit to Materials (range 13) 969 | -10/Materials | Discovered exit to Mines (range 13) 1254 | -10/Materials | Discovered exit to Materials (range 14) 1802 | -10/Materials | Entered Mines 1815 | -10/Mines | Assembled infested the area 1848 | -10/Mines | Core integrity fell below 50% 1858 | -10/Mines | Met 8R-AWN 1889 | -10/Mines | Lost 6 parts (1p2n3w) 1927 | -10/Mines | Core integrity fell below 20% 2088 | -10/Mines | Assisted by bots powering up and referring to "LRC-V3" 2194 | -10/Mines | Discovered exit to Materials (range 9) 2411 | -10/Mines | Discovered exit to Materials (range 6) 2515 | -10/Mines | Learned Materials interactive machine intel 2600 | -10/Mines | Discovered new exit (range 5) 2604 | -10/Mines | Identified exit to Exiles 2606 | -10/Mines | Entered Exiles 2606 | -10/Exiles | Accompanied by 3 allies 2636 | -10/Exiles | Welcomed by 8R-AWN 2671 | -10/Exiles | Discovered new exit (range 14) 2685 | -10/Exiles | Identified exit to Mines 2710 | -10/Exiles | Learned about 8R-AWN's background 2727 | -10/Exiles | Met EX-HEX 2833 | -10/Exiles | Met EX-DEC 2846 | -10/Exiles | Met EX-BIN 3013 | -10/Exiles | Learned location of Zion (-7) 3061 | -10/Exiles | Discovered exit to Mines (range 12) 3208 | -10/Exiles | Visited The Gauntlet 3425 | -10/Exiles | Aligned with FarCom system 3427 | -10/Exiles | Given EX-Vault access code 3454 | -10/Exiles | Opened EX-Vault 3464 | -10/Exiles | Found Prototype Device 3464 | -10/Exiles | Identified Trap Reconfigurator 3490 | -10/Exiles | Warned to stay clear of 0b10 Research branches 3591 | -10/Exiles | Left Exiles lab with Trap Reconfigurator 3591 | -10/Exiles | Entered Mines 3591 | -9/Mines | Accompanied by 3 allies 3609 | -9/Mines | Learned location of Storage (-8) 3684 | -9/Mines | Discovered new exit (range 10) 3689 | -9/Mines | Learned Materials terminal intel 3695 | -9/Mines | Identified exit to Materials 3823 | -9/Mines | Learned location of 2 exits from Materials 3835 | -9/Mines | Met a Derelict testing a Signal Generator 4286 | -9/Mines | Found a hidden stash of uninstalled traps 4405 | -9/Mines | Discovered exit to Materials (range 9) 4447 | -9/Mines | Met a Derelict who couldn't figure out how to use a Trap Extractor 4447 | -9/Mines | Destroyed by Proton Bomb Trap Last Messages --------------- 04312_ OQWFK3O|#Y5B :5UM#QS|8ND 04319_ U-05 Engineer lays Concrete. 04367_ R-06 Scavenger collects Wheel. 04374_ R-06 Scavenger collects Med. Matter Pod. 04395_ System corrupted: Energy discharge (-30). 04405_ EXIT=FOUND: MATERIALS 04446_ Connecting with SHOP.Sys... >>Open Door Sealed Doors opened. 04447_ Explosive Trap reprogrammed. 04447_ 1K-WJW(g): "I give up! Here you try, I'm outta here before something nasty happens..." 04447_ Tosses Imp. Trap Extractor to the ground. 04447_ 1K-WJW(g) triggered Proton Bomb Trap. 04447_ A bubble of electromagnetic force engulfs the area. 04447_ Explosive Trap short circuited. 04447_ SHOP.Sys disabled. 04447_ Machine disabled. Map ----- +----------------------------------------------------+ | ???????# #??# #???????? | | ????????# #???# #????????? | | ????????## ## #???# #????????? | | ?????????### ## #???# #????????? | | ???????????# ## #???##++##????????? | | ???????????# ## #????# #?????????? | | ???????????# ## #????# #?????????? | | ???????????# ## #??### #??#####??? | | ???????????# ## #### #??# #??? | | ???????????# #??# #??? | | ???????????######## ##?# #??? | | ??????????????????# ### ##?? | | ??????????????????## = #?? | | ???????????????????## =!#?? | | ????????????????????# ### ! ##? | | ????????????????????## ### [%=*## | | ?????????????????????## =%##&= %! # | | ???????????####???????#%% ###&& # | | ??????????## ##??????# #?# & % | | ?????????## ##?????## ##?## | | ????###?## ##?????# #???# | | ???## ## ##????# #???# | | ???#"!] # ###### #???# ## | | ???#"!]g # #???# ### | | ?????= # ###### #???# #?# | | ????????# @ g g ##????# #???# #?# | | ????????# g g###?????# #???# #?# | | ???????# g ##???????# #???# #?? | | ??????# ########### #???# #?? | | ?????# ### ## ##??# #?? | | ?????# ##?# #??# #?? | | ?????# ####??# #??# #?? | | ?????# ??????# < ### #### #?? | | ?????# ??????# ### ## ### | | ?????# ???????# ## | | ?????##???????# ## | | ??????????????# ### | | ??????????????#########?#### | | ???????????????????###?????### | | ??????????????????## ####???## | | ??????????????????# #??## | | ???????????????????# ### | | ????????????????????# | | ?????????????????????##$ | | ??????????????????????## | | ???????????????????????### ## | | ?????????????????????????## #### | | ??????????????????????????# #??? | | ????????????????????####### #??? | | ???????????????????## ## ##?? | +----------------------------------------------------+ Best States ------------- Heat Dissipation 25 Energy Generation 10 Energy Capacity 325 Matter Stores 300 Matter Capacity 300 Sight Range 16 Terrain Scan Density 10 Evasion (%) 55 Item Schematics ----------------- None Robot Schematics ------------------ None Fabricated ------------ Nothing Alien Tech Used ----------------- None Achievements -------------- I Survived The Infestation Slippery One Challenges ------------ None Game ------ Seed RagnarokSapperChip Manual? 0 Play Time 01:24:54 Cumulative 12.2 hours Start 2023.04.29 @ 22:24:30 End 2023.04.30 @ 00:01:56 Sessions 1 Manual Loads 0 Difficulty Rogue Special Mode None Game No. 5 Rogue 3 Adventurer 0 Explorer 2 Win Type - Total 0 Types 0/0/0/0/0/0/0/0/0 Lore% 11 Gallery% 10 Achievement% 14 Wizard Run 0 Options --------- ASCII 0 Keyboard 0 Movement Mouse Keybinds 0 Fullscreen 2 Font 16/Terminus Map View 76x50 Tactical HUD 1 Map Filters NONE Filters NONE Steam 1 RUN: b5209e7b-301a-4904-b721-c0133ad3f4c6